bitfinex/quotes_BTCUSD_20240729
["timestamp","ask_amount","ask_price","bid_price","bid_amount"]
[1722267059476,0.591448,67958.0,67943.0,0.009108]
[1722267059477,1.36354667,67958.0,67943.0,0.009108]
[1722267059643,1.70122616,67958.0,67943.0,0.009108]
[1722267059843,1.65784567,67958.0,67943.0,0.009108]
[1722267060040,1.67758183,67958.0,67943.0,0.009108]
[1722267060270,2.05758055,67958.0,67943.0,0.009108]
[1722267060486,1.82892866,67958.0,67943.0,0.009108]
[1722267060688,1.85192866,67958.0,67943.0,0.009108]
[1722267060897,2.14622766,67958.0,67943.0,0.009108]
[1722267061197,1.85192866,67958.0,67943.0,0.009108]
[1722267061534,1.95192866,67958.0,67943.0,0.009108]
[1722267061733,1.92892866,67958.0,67943.0,0.009108]
[1722267062003,1.48462966,67958.0,67943.0,0.009108]
[1722267062251,0.49378266,67958.0,67943.0,0.156289]
[1722267062492,0.49378266,67958.0,67953.0,0.077]
[1722267062493,0.06564711,67958.0,67953.0,0.077]
[1722267062748,0.12154355,67965.0,67957.0,0.073897]
[1722267062749,0.07154355,67965.0,67957.0,0.073897]
[1722267063019,0.001,67958.0,67957.0,0.891654]
[1722267063234,0.001,67958.0,67957.0,1.185957]
[1722267063437,0.001,67958.0,67957.0,1.285957]
[1722267063765,0.001,67958.0,67957.0,0.54614739]
[1722267063970,0.002,67958.0,67957.0,0.87214212]
[1722267064355,0.002,67958.0,67957.0,0.57628492]
[1722267064557,0.002,67958.0,67957.0,0.28603453]
[1722267064799,0.002,67958.0,67957.0,0.72748853]
[1722267065223,0.002,67958.0,67957.0,1.02179153]
[1722267065439,0.002,67958.0,67957.0,1.02079153]
[1722267065440,0.001,67958.0,67957.0,1.02079153]
[1722267065741,0.001,67958.0,67957.0,0.72648853]
[1722267066410,0.001,67958.0,67957.0,0.86958792]
[1722267066655,0.001,67958.0,67957.0,1.45819392]
[1722267066889,0.41571955,67987.0,67974.0,0.0829]
[1722267066890,0.07154355,67987.0,67974.0,0.0829]
[1722267067130,0.42926131,67975.0,67974.0,0.0829]
[1722267067347,0.01105118,67982.0,67974.0,0.0829]
[1722267067573,0.0648038,67978.0,67975.0,0.0015542]
[1722267068468,0.0648038,67978.0,67974.0,0.0829]
[1722267068679,0.0648038,67978.0,67966.0,0.0015542]
[1722267068680,0.147119,67972.0,67967.0,0.0616]
[1722267068863,0.07154355,67968.0,67967.0,0.0616]
[1722267069667,0.294203,67981.0,67967.0,0.0616]
[1722267069668,0.07154355,67980.0,67972.0,0.147118]
[1722267069866,0.07154355,67980.0,67973.0,0.0015542]
[1722267070282,0.07154355,67980.0,67967.0,0.49895839]
[1722267070283,0.07154355,67980.0,67970.0,0.147123]
[1722267070627,0.07154355,67980.0,67971.0,0.0015542]
[1722267070798,0.07154355,67973.0,67971.0,0.0015542]
[1722267071006,0.07154355,67973.0,67969.0,0.0015542]
[1722267071566,0.07154355,67973.0,67968.0,0.0015542]
[1722267072358,0.07154355,67973.0,67967.0,0.0616]
[1722267072754,0.00084,67971.0,67967.0,0.0616]
[1722267072951,0.00084,67971.0,67962.0,0.00126]
[1722267072952,0.2653,67970.0,67962.0,0.00126]
[1722267073187,0.07154355,67963.0,67962.0,0.00121]
[1722267073320,0.07154355,67963.0,67958.0,0.0638]
[1722267073321,0.13631831,67963.0,67958.0,0.0638]
[1722267073517,0.06477476,67962.0,67958.0,0.0638]
[1722267073923,0.06477476,67962.0,67957.0,0.009097]
[1722267074163,0.02197515,67961.0,67957.0,0.009097]
[1722267074375,0.06477476,67960.0,67957.0,0.009097]
[1722267074521,0.02197515,67959.0,67957.0,0.009097]
[1722267074756,0.412441,67962.0,67957.0,0.009097]
[1722267074757,0.08674991,67958.0,67957.0,0.009097]
[1722267074974,0.23389891,67958.0,67957.0,0.009097]
[1722267075241,0.08674991,67958.0,67957.0,0.009097]
[1722267075442,0.08722381,67958.0,67957.0,0.009097]
[1722267075656,0.23437281,67958.0,67957.0,0.009097]
[1722267076026,0.08722381,67958.0,67957.0,0.009097]
[1722267077471,0.06524866,67958.0,67957.0,0.009097]
[1722267077675,0.55091338,67958.0,67957.0,0.009097]
[1722267077810,0.25661438,67958.0,67957.0,0.009097]
[1722267078004,0.10946538,67958.0,67957.0,0.009097]
[1722267078678,0.10955263,67958.0,67957.0,0.009097]
[1722267078877,0.08842537,67958.0,67957.0,0.009097]
[1722267079463,0.08842537,67958.0,67957.0,0.075597]
[1722267079664,0.02308946,67958.0,67957.0,0.075597]
[1722267079898,0.02308946,67958.0,67957.0,0.009097]
[1722267080068,0.04553832,67958.0,67957.0,0.009097]
[1722267080340,0.11115689,67958.0,67957.0,0.009097]
[1722267081732,0.11151628,67958.0,67957.0,0.009097]
[1722267082140,0.11251628,67958.0,67957.0,0.015097]
[1722267082357,0.08942682,67958.0,67957.0,0.015097]
[1722267082560,0.08942682,67958.0,67957.0,0.157597]
[1722267082756,0.002,67958.0,67957.0,1.03845339]
[1722267082965,0.002,67958.0,67957.0,1.33275639]
[1722267083196,0.002,67958.0,67957.0,1.43275639]
[1722267084057,0.001,67958.0,67957.0,1.42675639]
[1722267084268,0.001,67958.0,67957.0,1.13245339]
[1722267084506,0.001,67958.0,67957.0,0.83815039]
[1722267085118,0.001,67958.0,67957.0,1.13230708]
[1722267085505,0.001,67958.0,67957.0,0.83800408]
[1722267085719,0.001,67958.0,67957.0,0.15345069]
[1722267086690,0.001,67958.0,67957.0,0.15545069]
[1722267086691,0.002,67958.0,67957.0,0.15545069]
[1722267087018,0.003,67958.0,67957.0,0.16145069]
[1722267087477,0.001,67958.0,67957.0,0.15745069]
[1722267087884,0.07154355,67965.0,67957.0,0.15145069]
[1722267088091,0.001,67958.0,67957.0,0.15745069]
[1722267088967,0.10998901,67970.0,67964.0,0.29427]
[1722267088968,0.0439956,67968.0,67964.0,0.29427]
[1722267089164,0.0659934,67970.0,67968.0,0.0644]
[1722267089165,0.0439956,67970.0,67968.0,0.0644]
[1722267089364,0.0448356,67971.0,67968.0,0.35462539]
[1722267089570,0.00084,67971.0,67970.0,0.230023]
[1722267089788,0.00084,67971.0,67970.0,0.73471153]
[1722267089983,0.00084,67971.0,67970.0,1.20515392]
[1722267090180,0.00084,67971.0,67970.0,1.44940092]
[1722267090392,0.02391988,67971.0,67970.0,1.44940092]
[1722267090842,0.02391988,67971.0,67970.0,1.49940092]
[1722267091044,0.02391988,67971.0,67970.0,1.91664792]
[1722267091297,0.02391988,67971.0,67970.0,1.52240092]
[1722267091500,0.02491988,67971.0,67970.0,1.50140092]
[1722267091918,0.02591988,67971.0,67970.0,1.61905554]
[1722267092500,0.02491988,67971.0,67970.0,1.63505554]
[1722267092714,0.02491988,67971.0,67970.0,1.53505554]
[1722267093312,0.02491988,67971.0,67970.0,1.63505554]
[1722267093793,0.02491988,67971.0,67970.0,1.53505554]
[1722267093994,0.02491988,67971.0,67970.0,1.63505554]
[1722267094550,0.02491988,67971.0,67970.0,1.92930254]
[1722267094892,0.02491988,67971.0,67970.0,1.90016501]
[1722267095250,0.07154355,67996.0,67986.0,0.0641]
[1722267095251,0.42926131,67989.0,67986.0,0.0641]
[1722267095509,0.07154355,67988.0,67987.0,0.29018539]
[1722267095710,0.07154355,67988.0,67987.0,0.14309939]
[1722267096139,0.07154355,67988.0,67986.0,0.09323753]
[1722267096140,0.07154355,67988.0,67986.0,0.02913753]
[1722267096297,0.07154355,67988.0,67979.0,0.02913753]
[1722267096501,0.07154355,67980.0,67976.0,0.0623]
[1722267096868,0.07154355,67980.0,67976.0,0.20539939]
[1722267097268,0.07154355,67980.0,67971.0,0.02913753]
[1722267097435,0.07144355,67972.0,67971.0,0.02913753]
[1722267097840,0.07144355,67972.0,67970.0,0.014]
[1722267099003,0.09452739,67972.0,67970.0,0.014]
[1722267099215,0.07154355,67980.0,67970.0,0.161123]
[1722267099423,0.07154355,67973.0,67970.0,0.014]
[1722267099847,0.07154355,67973.0,67970.0,0.017]
[1722267099848,0.001,67971.0,67970.0,0.017]
[1722267100710,0.001,67971.0,67970.0,0.003]
[1722267101044,0.001,67971.0,67970.0,0.150123]
[1722267101244,0.001,67971.0,67970.0,0.003]
[1722267102533,0.02408343,67971.0,67970.0,0.003]
[1722267103451,0.31832643,67971.0,67970.0,0.003]
[1722267103654,0.46544743,67971.0,67970.0,0.003]
[1722267103837,0.87039043,67971.0,67970.0,0.003]
[1722267104043,0.94333084,67971.0,67970.0,0.003]
[1722267104280,0.90044242,67971.0,67970.0,0.003]
[1722267104672,0.60619942,67971.0,67970.0,0.003]
[1722267104900,0.90044242,67971.0,67970.0,0.003]
[1722267105522,0.69513788,67971.0,67970.0,0.017]
[1722267105931,0.69413788,67971.0,67970.0,0.003]
[1722267106080,0.69414256,67971.0,67970.0,0.003]
[1722267106280,0.69414256,67971.0,67970.0,0.005]
[1722267106281,0.48297482,67971.0,67970.0,0.005]
[1722267106487,0.60497332,67971.0,67970.0,0.005]
[1722267106706,0.69375599,67971.0,67970.0,0.005]
[1722267107108,0.39951499,67971.0,67958.0,0.019924]
[1722267107311,0.04398266,67967.0,67959.0,0.14309939]
[1722267107536,0.07154355,67965.0,67959.0,0.14309939]
[1722267108531,0.04398266,67966.0,67961.0,0.294284]
[1722267108725,0.04398266,67966.0,67958.0,0.019924]
[1722267108726,0.04398266,67970.0,67966.0,0.14713]
[1722267108841,0.00084,67971.0,67963.0,0.294274]
[1722267108842,0.00084,67971.0,67967.0,0.00105076]
[1722267109041,0.00084,67971.0,67962.0,0.20629939]
[1722267109042,0.07154355,67970.0,67966.0,0.0015042]
[1722267109247,0.07154355,67970.0,67962.0,0.20629939]
[1722267109248,0.07154355,67970.0,67962.0,0.0632]
[1722267110082,0.07154355,67970.0,67958.0,0.085724]
[1722267110083,0.07154355,67963.0,67958.0,0.085724]
[1722267110704,0.02308708,67962.0,67958.0,0.019924]
[1722267110908,0.07154355,67963.0,67958.0,0.019924]
[1722267111112,0.01529027,67962.0,67958.0,0.019924]
[1722267113172,0.04400131,67964.0,67958.0,0.16302339]
[1722267113424,0.04400131,67966.0,67959.0,0.22059939]
[1722267113653,0.04400131,67970.0,67960.0,0.0637]
[1722267113897,0.04400131,67972.0,67965.0,0.147133]
[1722267114113,0.001,67970.0,67966.0,0.0015042]
[1722267114339,0.02308459,67968.0,67967.0,0.14713]
[1722267114536,0.06600197,67976.0,67967.0,0.14713]
[1722267114537,0.04400131,67978.0,67970.0,0.44137]
[1722267114764,0.08800263,67982.0,67970.0,0.61360692]
[1722267114765,0.04400131,67982.0,67970.0,0.61360692]
[1722267115166,0.04400131,67983.0,67970.0,0.61360692]
[1722267115361,0.04400131,67982.0,67970.0,0.61360692]
[1722267115593,0.32863183,67988.0,67970.0,0.61360692]
[1722267115594,0.07154355,67981.0,67970.0,0.61360692]
[1722267115795,0.07154355,67981.0,67970.0,0.02913753]
[1722267115995,0.0439876,67978.0,67970.0,0.02913753]
[1722267116197,0.0439876,67979.0,67970.0,0.02913753]
[1722267116396,0.0439876,67980.0,67970.0,0.02913753]
[1722267116594,0.07154355,67981.0,67970.0,0.02913753]
[1722267116595,0.11553115,67981.0,67970.0,0.02913753]
[1722267116842,0.00184,67971.0,67970.0,0.04313753]
[1722267117372,0.00184,67971.0,67970.0,0.014]
[1722267117571,0.7524916,67971.0,67970.0,0.014]
[1722267117768,0.05,67963.0,67949.0,0.08]
[1722267117937,0.11554438,67959.0,67949.0,0.08]
[1722267118205,0.11554438,67959.0,67946.0,0.061]
[1722267118206,0.32127381,67959.0,67946.0,0.061]
[1722267118333,0.17412681,67959.0,67946.0,0.061]
[1722267118684,0.17412681,67959.0,67943.0,0.009108]
[1722267118685,1.57764401,67959.0,67943.0,0.009108]
[1722267118910,1.75064696,67959.0,67958.0,0.01107656]
[1722267119676,1.35635196,67959.0,67958.0,0.01107656]
[1722267120151,0.95205228,67959.0,67958.0,0.01107656]
[1722267120361,1.06205696,67959.0,67958.0,0.01107656]
[1722267120558,1.35735196,67959.0,67958.0,0.01407656]
[1722267120799,1.06305696,67959.0,67958.0,0.01407656]
[1722267121000,1.06605696,67959.0,67958.0,0.01407656]
[1722267121163,0.26805133,67959.0,67958.0,0.01407656]
[1722267121357,0.18915133,67959.0,67958.0,0.01407656]
[1722267121862,0.11825741,67959.0,67958.0,0.01277625]
[1722267122063,0.10771697,67959.0,67958.0,0.01277625]
[1722267122272,0.02708957,67959.0,67958.0,0.01277625]
[1722267122673,0.02708957,67959.0,67958.0,0.59732364]
[1722267122674,0.001,67959.0,67958.0,0.59732364]
[1722267123470,0.001,67959.0,67958.0,0.89162264]
[1722267123471,0.00093882,67959.0,67958.0,0.89162264]
[1722267123647,0.00093882,67959.0,67958.0,0.59732364]
[1722267124194,0.00093882,67959.0,67958.0,0.89162264]
[1722267124598,0.00093882,67959.0,67958.0,1.47882164]
[1722267124797,0.00184,67971.0,67970.0,0.44137]
[1722267125003,0.00184,67971.0,67970.0,1.04875392]
[1722267125208,0.00184,67971.0,67970.0,1.14875392]
[1722267125429,0.00184,67971.0,67970.0,1.44300092]
[1722267125698,0.02492096,67971.0,67970.0,1.44300092]
[1722267125856,0.02492096,67971.0,67970.0,0.41313692]
[1722267126056,0.02492096,67971.0,67970.0,0.56025992]
[1722267126479,0.02492096,67971.0,67970.0,0.12913753]
[1722267126976,0.02492096,67971.0,67970.0,0.47050753]
[1722267127194,0.02492096,67971.0,67970.0,1.00785392]
[1722267127395,0.02492096,67971.0,67970.0,1.44850092]
[1722267127980,0.02492096,67971.0,67970.0,1.46250092]
[1722267128206,0.02492096,67971.0,67970.0,1.90874792]
[1722267128438,0.00184,67971.0,67970.0,1.80674792]
[1722267128667,0.00184,67971.0,67970.0,1.90674792]
[1722267128894,0.00184,67971.0,67970.0,1.80674792]
[1722267129340,0.00184,67971.0,67970.0,1.91774792]
[1722267129823,0.07154355,67996.0,67991.0,0.87259]
[1722267129824,0.42926131,67992.0,67991.0,0.87259]
[1722267130024,0.42926131,67992.0,67991.0,0.284278]
[1722267130336,0.07154355,67996.0,67991.0,0.431356]
[1722267130499,0.07154355,67996.0,67988.0,0.147084]
[1722267130683,0.07154355,67989.0,67988.0,0.147084]
[1722267130882,0.07154355,67989.0,67987.0,0.147086]
[1722267131118,0.07154355,67989.0,67988.0,0.29018339]
[1722267131262,0.07154355,67989.0,67988.0,0.58435239]
[1722267131579,0.07154355,67989.0,67988.0,0.29018339]
[1722267131780,0.07154355,67989.0,67988.0,0.58435239]
[1722267132636,0.07154355,67989.0,67988.0,0.87852139]
[1722267132805,0.07154355,67996.0,67995.0,0.147069]
[1722267133008,0.11549399,68004.0,67997.0,0.294129]
[1722267133009,0.07154355,68004.0,67997.0,0.294129]
[1722267133222,0.07154355,68004.0,67993.0,0.02913753]
[1722267133223,0.0767,68003.0,67993.0,0.02913753]
[1722267133480,0.13784355,67994.0,67986.0,0.02913753]
[1722267133704,0.13784355,67994.0,67973.0,0.02913753]
[1722267133705,0.07154355,67987.0,67973.0,0.02913753]
[1722267133921,0.07154355,67987.0,67967.0,0.063]
[1722267133922,0.07154355,67974.0,67967.0,0.063]
[1722267134136,0.07154355,67974.0,67962.0,0.0764]
[1722267134139,0.14309939,67973.0,67962.0,0.01073006]
[1722267134337,0.14309939,67973.0,67958.0,0.00977625]
[1722267134338,0.07154355,67963.0,67958.0,0.00977625]
[1722267135379,0.02308591,67962.0,67958.0,0.00977625]
[1722267135583,0.07154355,67963.0,67958.0,0.00977625]
[1722267138330,0.2130241,67971.0,67959.0,0.14309939]
[1722267138331,0.04393473,67971.0,67959.0,0.14309939]
[1722267138548,0.07154355,67974.0,67959.0,0.14309939]
[1722267138549,0.01528928,67970.0,67963.0,0.294276]
[1722267138749,0.07154355,67967.0,67959.0,0.14309939]
[1722267139362,0.02308556,67969.0,67959.0,0.14309939]
[1722267139569,0.02308556,67969.0,67963.0,0.294277]
[1722267139759,0.02308556,67969.0,67965.0,0.147134]
[1722267139897,0.02308556,67969.0,67963.0,0.294277]
[1722267140270,0.07154355,67974.0,67965.0,0.147133]
[1722267140438,0.07154355,67967.0,67963.0,0.147137]
[1722267140645,0.04395554,67975.0,67964.0,0.21969939]
[1722267140807,0.15945464,67978.0,67968.0,0.147126]
[1722267140808,0.001,67969.0,67968.0,0.147126]
[1722267141048,0.001,67969.0,67968.0,1.17299339]
[1722267141222,0.001,67969.0,67968.0,1.07873739]
[1722267141644,0.001,67969.0,67968.0,1.37299339]
[1722267141871,0.001,67969.0,67968.0,1.42299339]
[1722267142069,0.42926131,67986.0,67984.0,0.294186]
[1722267142278,0.10988886,67998.0,67984.0,0.294186]
[1722267142279,0.42926131,67989.0,67988.0,0.441253]
[1722267142430,0.04395554,68000.0,67988.0,0.14309939]
[1722267142629,0.06593331,68002.0,67978.0,0.1614]
[1722267142630,0.07154355,67990.0,67978.0,0.1614]
[1722267142885,0.07154355,67982.0,67979.0,0.27223692]
[1722267143085,0.07154355,67982.0,67981.0,0.147099]
[1722267143240,0.07154355,67982.0,67981.0,0.68439739]
[1722267143599,0.07154355,67990.0,67983.0,0.147095]
[1722267143806,0.07154355,67983.0,67981.0,0.24309939]
[1722267144012,0.07154355,67983.0,67982.0,0.1]
[1722267144217,0.07154355,67983.0,67972.0,0.02913753]
[1722267144431,0.07154355,67973.0,67964.0,0.0617]
[1722267144663,0.07154355,67983.0,67964.0,0.0617]
[1722267144664,0.07154355,67972.0,67969.0,0.147124]
[1722267144865,0.07154355,67972.0,67964.0,0.0617]
[1722267144866,0.11549682,67983.0,67970.0,0.14309939]
[1722267145066,0.07154355,67976.0,67970.0,0.14309939]
[1722267146336,0.07154355,67983.0,67970.0,0.14309939]
[1722267146531,0.07154355,67983.0,67976.0,0.14711]
[1722267146704,0.07154355,67983.0,67977.0,0.14309939]
[1722267146905,0.07154355,67983.0,67978.0,0.147105]
[1722267146906,0.02308069,67982.0,67978.0,0.147105]
[1722267147111,0.02308069,67982.0,67978.0,0.294212]
[1722267147335,0.06592832,67989.0,67982.0,0.0617]
[1722267147336,0.07154355,67989.0,67982.0,0.0617]
[1722267147548,0.07154355,67989.0,67982.0,0.14309939]
[1722267147753,0.07154355,67989.0,67984.0,0.294185]
[1722267147961,0.07154355,67989.0,67983.0,0.147095]
[1722267148171,0.04395221,67993.0,67985.0,0.14309939]
[1722267148377,0.07154355,67996.0,67986.0,0.294177]
[1722267148598,0.07154355,67996.0,67989.0,0.147081]
[1722267148795,0.07154355,67996.0,67990.0,0.14309939]
[1722267149343,0.07154355,67996.0,67990.0,0.29017839]
[1722267149947,0.07154355,67996.0,67990.0,0.14309939]
[1722267150572,0.07154355,67996.0,67986.0,0.02913753]
[1722267150573,0.147072,67994.0,67986.0,0.02913753]
[1722267151000,0.147072,67994.0,67982.0,0.1]
[1722267151001,0.07154355,67987.0,67982.0,0.1]
[1722267151181,0.07154355,67987.0,67982.0,0.14309939]
[1722267151384,0.07154355,67987.0,67983.0,0.1]
[1722267151891,0.11547576,67996.0,67983.0,0.1]
[1722267152048,0.07154355,67988.0,67983.0,0.247094]
[1722267152463,0.001,67989.0,67985.0,0.29418]
[1722267152631,0.001,67989.0,67988.0,0.147084]
[1722267152836,0.07154355,67996.0,67988.0,0.14309939]
[1722267153037,0.07154355,67996.0,67989.0,0.14309939]
[1722267153443,0.07254355,67996.0,67989.0,0.14309939]
[1722267153643,0.07254355,67996.0,67990.0,0.147079]
[1722267153644,0.02307611,67995.0,67990.0,0.147079]
[1722267153869,0.02307611,67995.0,67989.0,0.29018139]
[1722267154454,0.02307611,67995.0,67989.0,0.14309939]
[1722267154869,0.07254355,67996.0,67989.0,0.14309939]
[1722267155074,0.01528281,67995.0,67989.0,0.14309939]
[1722267155234,0.01528281,67995.0,67988.0,0.04113753]
[1722267155436,0.01528281,67995.0,67988.0,0.012]
[1722267155642,0.07154355,67989.0,67988.0,0.012]
[1722267156163,0.13424355,67989.0,67988.0,0.012]
[1722267156369,0.29660994,67989.0,67988.0,0.012]
[1722267156495,0.59077494,67989.0,67988.0,0.012]
[1722267156695,1.09266112,67989.0,67988.0,0.012]
[1722267156900,1.9281249,67989.0,67988.0,0.012]
[1722267157142,1.9281249,67989.0,67958.0,0.00977625]
[1722267157143,0.1388,67976.0,67958.0,0.00977625]
[1722267157377,0.07154355,67969.0,67965.0,0.42926131]
[1722267157559,0.07154355,67969.0,67958.0,0.00977625]
[1722267158135,0.02308468,67967.0,67958.0,0.15692525]
[1722267158334,0.02308468,67967.0,67958.0,0.00977625]
[1722267158562,0.07154355,67962.0,67958.0,0.00977625]
[1722267158980,0.02308468,67967.0,67959.0,0.14604231]
[1722267159302,0.02308468,67967.0,67963.0,0.147138]
[1722267159424,0.07154355,67966.0,67965.0,0.011]
[1722267159620,0.07154355,67966.0,67965.0,0.15409939]
[1722267160052,0.02308468,67967.0,67965.0,0.30123239]
[1722267160394,0.07154355,67966.0,67965.0,0.15409939]
[1722267160904,0.07154355,67966.0,67965.0,0.011]
[1722267162712,0.13254355,67966.0,67965.0,0.011]
[1722267162927,0.29496521,67966.0,67965.0,0.011]
[1722267163133,0.14783321,67966.0,67965.0,0.011]
[1722267163538,0.58922921,67966.0,67965.0,0.011]
[1722267163760,0.77517262,67966.0,67965.0,0.011]
[1722267163997,1.38674424,67966.0,67965.0,0.011]
[1722267164219,1.1803441,67966.0,67965.0,0.011]
[1722267164435,1.0567237,67966.0,67965.0,0.011]
[1722267164673,1.74092609,67966.0,67965.0,0.011]
[1722267164897,1.62995554,67966.0,67965.0,0.011]
[1722267166045,1.52995554,67966.0,67965.0,0.011]
[1722267166272,1.62995554,67966.0,67965.0,0.011]
[1722267166493,1.63020404,67966.0,67965.0,0.011]
[1722267166704,1.74006755,67966.0,67965.0,0.011]
[1722267166926,1.63420404,67966.0,67965.0,0.011]
[1722267167388,1.58420404,67966.0,67965.0,0.011]
[1722267167608,1.57500022,67966.0,67965.0,0.011]
[1722267167839,1.74405329,67966.0,67965.0,0.011]
[1722267168065,1.63419031,67966.0,67965.0,0.011]
[1722267168275,1.65727791,67966.0,67965.0,0.011]
[1722267169535,1.63419031,67966.0,67965.0,0.011]
[1722267171166,0.441442,67959.0,67958.0,0.00977625]
[1722267171279,0.82257021,67959.0,67958.0,0.00977625]
[1722267171497,0.89561684,67959.0,67958.0,0.00977625]
[1722267171700,1.22021508,67959.0,67958.0,0.00977625]
[1722267171899,1.17021508,67959.0,67958.0,0.00977625]
[1722267172103,1.36331447,67959.0,67958.0,0.00977625]
[1722267172532,1.65760947,67959.0,67958.0,0.00977625]
[1722267172957,1.31331447,67959.0,67958.0,0.00977625]
[1722267173376,1.34802481,67959.0,67958.0,0.00977625]
[1722267173541,1.44802481,67959.0,67958.0,0.00977625]
[1722267173913,1.00372981,67959.0,67958.0,0.00977625]
[1722267174118,1.37738535,67959.0,67958.0,0.00977625]
[1722267174341,1.40433872,67959.0,67958.0,0.00977625]
[1722267174551,1.50433872,67959.0,67958.0,0.00977625]
[1722267174769,2.47732801,67959.0,67958.0,0.00977625]
[1722267174990,1.335146,67958.0,67957.0,0.00895069]
[1722267175196,1.335146,67958.0,67943.0,0.009108]
[1722267175197,0.49154,67944.0,67943.0,0.009108]
[1722267175396,1.26334355,67944.0,67943.0,0.009108]
[1722267175605,1.80080294,67944.0,67943.0,0.009108]
[1722267175821,1.88108727,67944.0,67943.0,0.009108]
[1722267176144,1.88108727,67944.0,67912.0,0.303603]
[1722267176145,0.491618,67932.0,67912.0,0.072608]
[1722267176350,1.07307355,67932.0,67912.0,0.072608]
[1722267176563,0.77866155,67932.0,67913.0,0.147246]
[1722267176764,0.77866155,67932.0,67917.0,0.147237]
[1722267176765,0.2655,67932.0,67917.0,0.147237]
[1722267177008,0.2655,67932.0,67912.0,0.072608]
[1722267177009,0.707118,67932.0,67912.0,0.219856]
[1722267177218,1.38022824,67932.0,67912.0,0.009108]
[1722267177776,1.43775367,67932.0,67912.0,0.009108]
[1722267177994,1.61585367,67932.0,67880.0,0.1295]
[1722267178160,1.61585367,67932.0,67896.0,0.147284]
[1722267178161,0.05,67897.0,67896.0,0.147284]
[1722267178380,0.05,67897.0,67896.0,0.441852]
[1722267178537,0.05,67897.0,67884.0,0.323]
[1722267178779,0.07310518,67897.0,67896.0,0.441852]
[1722267178992,0.07310518,67897.0,67896.0,0.73642]
[1722267179194,0.07310518,67897.0,67896.0,0.441852]
[1722267179410,0.17310518,67897.0,67896.0,0.147284]
[1722267179614,0.05,67893.0,67884.0,0.323]
[1722267179747,0.02310518,67897.0,67883.0,0.14309939]
[1722267179748,0.15,67890.0,67883.0,0.14309939]
[1722267179956,0.05,67887.0,67886.0,0.147305]
[1722267180151,0.05,67887.0,67886.0,0.441916]
[1722267180355,0.05,67887.0,67886.0,0.147305]
[1722267180583,0.07310761,67887.0,67886.0,0.441916]
[1722267180776,0.05,67885.0,67883.0,0.14309939]
[1722267180974,0.1,67886.0,67883.0,0.14309939]
[1722267180975,0.05,67886.0,67885.0,0.0666]
[1722267181179,0.15,67886.0,67885.0,0.213907]
[1722267181374,0.15,67886.0,67885.0,0.803137]
[1722267181375,0.05,67886.0,67885.0,0.803137]
[1722267181579,0.05,67886.0,67885.0,0.508522]
[1722267181580,0.15,67886.0,67885.0,0.508522]
[1722267181777,0.05,67886.0,67885.0,0.508522]
[1722267181979,0.05,67886.0,67885.0,0.803137]
[1722267182178,0.05,67886.0,67885.0,0.608522]
[1722267183003,0.045,67886.0,67885.0,0.608522]
[1722267183252,0.145,67886.0,67885.0,0.313907]
[1722267183386,0.145,67886.0,67885.0,0.608522]
[1722267183582,0.145,67886.0,67885.0,0.313907]
[1722267183825,0.146,67886.0,67885.0,0.327907]
[1722267184062,0.146,67886.0,67885.0,0.1806]
[1722267184270,0.146,67886.0,67885.0,0.0806]
[1722267184471,0.146,67886.0,67885.0,0.014]
[1722267184472,0.148,67886.0,67885.0,0.014]
[1722267185321,0.87461539,67886.0,67885.0,0.014]
[1722267185524,1.03546052,67886.0,67885.0,0.014]
[1722267185786,0.88815452,67886.0,67885.0,0.014]
[1722267186005,0.47522491,67886.0,67885.0,0.014]
[1722267186889,0.49833919,67886.0,67885.0,0.014]
[1722267187128,0.79295019,67886.0,67885.0,0.014]
[1722267187372,0.62252991,67886.0,67885.0,0.014]
[1722267187602,0.76883591,67886.0,67868.0,0.1]
[1722267187857,0.17154355,67869.0,67868.0,0.1]
[1722267188301,0.17354355,67869.0,67868.0,0.1]
[1722267188532,0.145,67862.0,67861.0,0.0631]
[1722267188784,0.21654355,67862.0,67861.0,0.21046]
[1722267188979,0.21654355,67862.0,67861.0,0.1631]
[1722267189215,0.145,67855.0,67854.0,0.0645]
[1722267189416,0.145,67855.0,67854.0,0.211875]
[1722267189547,0.145,67855.0,67854.0,0.0645]
[1722267190181,0.045,67855.0,67854.0,0.506625]
[1722267190394,0.06811953,67855.0,67854.0,0.35497439]
[1722267190543,0.06811953,67855.0,67854.0,0.64972439]
[1722267190742,0.06811953,67855.0,67854.0,0.94447439]
[1722267191166,0.045,67847.0,67846.0,0.442177]
[1722267191385,0.045,67847.0,67846.0,0.58527639]
[1722267191733,0.045,67847.0,67846.0,0.88006139]
[1722267191885,0.0465542,67847.0,67846.0,0.147392]
[1722267192068,0.0465542,67847.0,67846.0,0.736962]
[1722267192266,0.045,67847.0,67846.0,0.736962]
[1722267192465,0.045,67847.0,67846.0,0.442177]
[1722267192731,0.05,67844.0,67839.0,0.0665]
[1722267192847,0.05,67844.0,67843.0,0.442197]
[1722267193054,0.05,67844.0,67843.0,0.29049839]
[1722267193247,0.0515542,67844.0,67843.0,0.29049839]
[1722267193453,0.0515542,67844.0,67843.0,0.58529639]
[1722267193696,0.17154355,67845.0,67844.0,0.147396]
[1722267193898,0.07154355,67845.0,67844.0,0.88008139]
[1722267194072,0.11654355,67845.0,67844.0,0.88008139]
[1722267194710,0.21654355,67845.0,67844.0,0.58528839]
[1722267194936,0.23966723,67845.0,67844.0,0.58528839]
[1722267195135,0.045,67850.0,67844.0,0.14309939]
[1722267195373,0.2655,67856.0,67844.0,0.14309939]
[1722267195374,0.0015542,67849.0,67848.0,0.147388]
[1722267195589,0.0015542,67849.0,67848.0,1.0250855]
[1722267195808,0.0015542,67849.0,67848.0,1.4428615]
[1722267196028,0.0015542,67849.0,67848.0,1.43991539]
[1722267196266,0.045,67860.0,67848.0,0.42278064]
[1722267196497,0.045,67860.0,67859.0,0.73682]
[1722267196778,0.045,67860.0,67849.0,0.26609939]
[1722267196779,0.11654355,67855.0,67849.0,0.24309939]
[1722267196976,0.11654355,67855.0,67854.0,0.147375]
[1722267196977,0.21654355,67855.0,67854.0,0.147375]
[1722267197184,0.21654355,67855.0,67854.0,0.1]